lending/lending_fUSD_20251022
["ID","MTS","AMOUNT","RATE_DAILY","PERIOD"]
[392077921,1761137460385,-1098.31,0.00044931,120]
[392077922,1761137460396,-866.75,0.00044931,120]
[392077923,1761137460406,-500.0,0.00044931,120]
[392077924,1761137460418,-500.0,0.00044931,120]
[392077925,1761137460428,-500.0,0.00044931,120]
[392077926,1761137460438,-899.21,0.00044931,120]
[392077927,1761137460452,-683.69,0.00044931,120]
[392077928,1761137460461,-901.18,0.00044931,120]
[392077929,1761137460471,-500.0,0.00044931,120]
[392077930,1761137460481,-1139.36,0.00044931,120]
[392077931,1761137460490,-500.0,0.00044931,120]
[392077932,1761137460499,-978.62,0.00044931,120]
[392077933,1761137460509,-500.0,0.00044931,120]
[392077934,1761137460519,-500.0,0.00044931,120]
[392077935,1761137460528,-503.85,0.00044931,120]
[392077936,1761137460538,-500.0,0.00044931,120]
[392077937,1761137460547,-1709.15,0.00044931,120]
[392077938,1761137460556,-500.0,0.00044931,120]
[392077939,1761137460566,-500.0,0.00044931,120]
[392077940,1761137460575,-1255.83,0.00044931,120]
[392077941,1761137460584,-598.97,0.00044931,120]
[392077942,1761137460594,-287.22154304,0.00044931,120]
[392077943,1761137460604,-500.0,0.00044931,120]
[392077944,1761137460614,-500.0,0.00044931,120]
[392077945,1761137460623,-500.0,0.00044931,120]
[392077946,1761137460633,-500.0,0.00044931,120]
[392077947,1761137460643,-500.0,0.00044931,120]
[392077948,1761137460652,-500.0,0.00044931,120]
[392077949,1761137460662,-500.0,0.00044931,120]
[392077950,1761137460671,-556.6523991,0.00044931,120]
[392077951,1761137460681,-500.0,0.00044931,120]
[392077952,1761137460690,-913.64,0.00044931,2]
[392077953,1761137460700,-500.0,0.00044931,120]
[392077954,1761137460710,-500.0,0.00044931,2]
[392077955,1761137460719,-788.16,0.00044931,120]
[392077956,1761137460729,-500.0,0.00044931,120]
[392077957,1761137460739,-572.17,0.00044931,120]
[392077958,1761137460748,-509.23955739,0.00044931,120]
[392077959,1761137460758,-500.0,0.00044931,120]
[392077960,1761137460769,-500.0,0.00044931,120]
[392077961,1761137460782,-443.96172985,0.00044931,120]
[392077962,1761137460791,-500.0,0.00044931,120]
[392077963,1761137460801,-500.0,0.00044931,120]
[392077964,1761137460811,-500.0,0.00044931,120]
[392077965,1761137460821,-1172.27,0.00044931,120]
[392077966,1761137460830,-500.0,0.00044931,120]
[392077967,1761137460840,-500.0,0.00044931,120]
[392077968,1761137460850,-822.33,0.00044931,120]
[392077969,1761137460860,-300.0,0.00044931,2]
[392077970,1761137460869,-940.37,0.00044931,120]
[392077971,1761137460878,-500.0,0.00044931,120]
[392077972,1761137460889,-500.0,0.00044931,120]
[392077973,1761137460899,-1208.24,0.00044931,120]
[392077974,1761137460908,-647.81,0.00044931,120]
[392077975,1761137460918,-500.0,0.00044931,120]
[392077976,1761137460928,-500.0,0.00044931,120]
[392077977,1761137460937,-500.0,0.00044931,120]
[392077978,1761137460947,-903.67,0.00044931,120]
[392077979,1761137460956,-500.0,0.00044931,120]
[392077980,1761137460965,-701.38,0.00044931,120]
[392077981,1761137460975,-500.0,0.00044931,120]
[392077982,1761137460987,-430.22178879,0.00044931,120]
[392077983,1761137460996,-500.0,0.00044931,120]
[392077984,1761137461007,-726.04,0.00044931,120]
[392077985,1761137461017,-1257.65,0.00044931,120]
[392077986,1761137461026,-500.0,0.00044931,120]
[392077987,1761137461035,-1171.07,0.00044931,120]
[392077988,1761137461045,-500.0,0.00044931,120]
[392077989,1761137461054,-500.0,0.00044931,7]
[392077990,1761137461064,-966.41,0.00044931,120]
[392077991,1761137461073,-500.0,0.00044931,120]
[392077992,1761137461082,-500.0,0.00044931,120]
[392077993,1761137461092,-838.16,0.00044931,120]
[392077994,1761137461102,-793.36,0.00044931,120]
[392077995,1761137461111,-650.24,0.00044931,120]
[392077996,1761137461121,-500.0,0.00044931,120]
[392077997,1761137461131,-500.0,0.00044931,120]
[392077998,1761137461140,-739.64,0.00044931,120]
[392077999,1761137461150,-1537.31,0.00044931,120]
[392078000,1761137461160,-301.17829229,0.00044931,2]
[392078001,1761137461169,-500.0,0.00044931,120]
[392078002,1761137461179,-500.0,0.00044931,120]
[392078003,1761137461188,-1957.66,0.00044931,120]
[392078004,1761137461198,-500.0,0.00044931,120]
[392078005,1761137461207,-500.0,0.00044931,120]
[392078006,1761137461217,-500.0,0.00044931,16]
[392078007,1761137461227,-728.44,0.00044931,120]
[392078008,1761137461237,-500.0,0.00044931,120]
[392078009,1761137461246,-1020.65,0.00044931,120]
[392078010,1761137461256,-500.0,0.00044931,120]
[392078011,1761137461265,-500.0,0.00044931,120]
[392078012,1761137461274,-500.0,0.00044931,120]
[392078013,1761137461284,-500.0,0.00044931,120]
[392078014,1761137461294,-500.0,0.00044931,120]
[392078015,1761137461303,-500.0,0.00044931,120]
[392078016,1761137461313,-500.0,0.00044931,120]
[392078017,1761137461323,-500.0,0.00044931,120]
[392078018,1761137461333,-523.96346703,0.00044931,120]
[392078019,1761137461342,-500.0,0.00044931,120]
[392078020,1761137461352,-1283.72,0.00044931,120]
[392078021,1761137461490,-500.0,0.00044931,120]
[392078022,1761137461505,-507.24,0.00044931,120]
[392078023,1761137461515,-552.53740454,0.00044931,120]
[392078024,1761137461526,-500.0,0.00044931,120]
[392078025,1761137461536,-500.0,0.00044931,120]
[392078026,1761137461546,-1791.81,0.00044931,120]
[392078027,1761137461556,-500.0,0.00044931,2]
[392078028,1761137461566,-516.69,0.00044931,120]
[392078029,1761137461575,-500.0,0.00044931,120]
[392078030,1761137461583,-500.0,0.00044931,120]
[392078031,1761137461592,-1704.96,0.00044931,120]
[392078032,1761137461601,-774.46,0.00044931,120]
[392078033,1761137461610,-684.88,0.00044931,120]
[392078034,1761137461619,-903.57,0.00044931,120]
[392078035,1761137461628,-271.04902919,0.00044931,120]
[392078036,1761137461638,-500.0,0.00044931,120]
[392078037,1761137461648,-500.0,0.00044931,120]
[392078038,1761137461657,-500.0,0.00044931,120]
[392078039,1761137461667,-500.0,0.00044931,120]
[392078040,1761137461677,-500.0,0.00044931,120]
[392078041,1761137461687,-500.08,0.00044931,120]
[392078042,1761137461698,-500.0,0.00044931,120]
[392078043,1761137461707,-976.02,0.00044931,120]
[392078044,1761137461718,-1123.28,0.00044931,120]
[392078045,1761137461727,-791.42,0.00044931,120]
[392078046,1761137461737,-500.0,0.00044931,120]
[392078047,1761137461747,-1380.66,0.00044931,120]
[392078048,1761137461756,-500.0,0.00044931,120]
[392078049,1761137461765,-777.97,0.00044931,120]
[392078050,1761137461778,-1069.18,0.00044931,120]
[392078051,1761137461788,-550.13,0.00044931,120]
[392078052,1761137461798,-500.0,0.00044931,120]
[392078053,1761137461808,-500.0,0.00044931,120]
[392078054,1761137461819,-500.0,0.00044931,120]
[392078055,1761137461829,-500.0,0.00044931,120]
[392078056,1761137461840,-500.0,0.00044931,120]
[392078057,1761137461852,-500.0,0.00044931,120]
[392078058,1761137461863,-657.62,0.00044931,120]
[392078059,1761137461874,-500.0,0.00044931,120]
[392078060,1761137461884,-741.11,0.00044931,120]
[392078061,1761137461894,-546.69,0.00044931,120]
[392078062,1761137461903,-500.0,0.00044931,120]
[392078063,1761137461913,-868.99,0.00044931,120]
[392078064,1761137461923,-500.0,0.00044931,120]
[392078065,1761137461932,-749.46,0.00044931,120]
[392078066,1761137461942,-500.0,0.00044931,120]
[392078067,1761137461952,-1632.62,0.00044931,120]
[392078068,1761137461961,-1268.92,0.00044931,120]
[392078069,1761137461970,-1515.76,0.00044931,120]
[392078070,1761137461980,-500.0,0.00044931,120]
[392078071,1761137461990,-500.0,0.00044931,120]
[392078072,1761137461999,-500.0,0.00044931,120]
[392078073,1761137462010,-447.21506659,0.00044931,120]
[392078074,1761137462019,-1021.54,0.00044931,120]
[392078075,1761137462028,-500.0,0.00044931,120]
[392078076,1761137462038,-500.0,0.00044931,120]
[392078077,1761137462048,-150.5,0.0004498,120]
[392078078,1761137462057,-417.78101719,0.0004498,28]
[392078079,1761137462067,-500.0,0.00044989,120]
[392078080,1761137462076,-300.0,0.0004499,120]
[392078081,1761137462086,-420.0,0.0004499,120]
[392078082,1761137462096,-150.5,0.0004499,120]
[392078083,1761137462105,-500.0,0.00044999,120]
[392078084,1761137462114,-500.0,0.00044999,120]
[392078085,1761137462123,-500.0,0.00044999,120]
[392078086,1761137462133,-500.0,0.00044999,120]
[392078087,1761137462143,-500.0,0.00044999,120]
[392078088,1761137462153,-500.0,0.00044999,120]
[392078089,1761137462162,-500.0,0.00044999,120]
[392078090,1761137462172,-500.0,0.00044999,120]
[392078091,1761137462182,-1857.0,0.00045,120]
[392078092,1761137462192,-1856.0,0.00045,120]
[392078093,1761137462202,-259.46150222,0.00045,120]
[392078094,1761137462211,-1000000.0,0.00045,120]
[392078095,1761137462221,-7230.91,0.00045,14]
[392078096,1761137462231,-7012.6,0.00045,30]
[392078097,1761137462240,-374.68584808,0.00045105,15]
[392078098,1761137462250,-500.0,0.00045204,120]
[392078099,1761137462260,-500.0,0.00045204,120]
[392078100,1761137462270,-683.25,0.00045205,120]
[392078101,1761137462280,-668.65,0.00045205,60]
[392078102,1761137462290,-500.0,0.00045205,120]
[392078103,1761137462299,-500.0,0.00045205,120]
[392078104,1761137462309,-500.0,0.00045205,120]
[392078105,1761137462318,-500.0,0.00045205,120]
[392078106,1761137462328,-504.28,0.00045205,120]
[392078107,1761137462337,-500.0,0.00045205,120]
[392078108,1761137462347,-500.0,0.00045205,120]
[392078109,1761137462356,-500.0,0.00045205,120]
[392078110,1761137462366,-500.0,0.00045205,120]
[392078111,1761137462376,-500.0,0.00045205,120]
[392078112,1761137462386,-500.0,0.00045205,30]
[392078113,1761137462396,-500.0,0.00045205,120]
[392078114,1761137462405,-678.16,0.00045205,120]
[392078115,1761137462415,-953.82,0.00045205,120]
[392078116,1761137462425,-1131.8,0.00045205,120]
[392078117,1761137462434,-538.28,0.00045205,120]
[392078118,1761137462443,-500.0,0.00045205,120]
[392078119,1761137462452,-1212.18,0.00045205,120]
[392078120,1761137462462,-500.0,0.00045205,120]
[392078121,1761137462471,-166.27093794,0.00045205,120]
[392078122,1761137462482,-500.0,0.00045205,120]
[392078123,1761137462491,-500.0,0.00045205,120]
[392078124,1761137462502,-500.0,0.00045205,120]
[392078125,1761137462511,-971.57,0.00045205,120]
[392078126,1761137462521,-500.0,0.00045205,120]
[392078127,1761137462531,-500.0,0.00045205,120]
[392078128,1761137462540,-500.0,0.00045205,120]
[392078129,1761137462550,-500.0,0.00045205,2]
[392078130,1761137462560,-500.0,0.00045205,2]
[392078131,1761137462570,-500.0,0.00045205,120]
[392078132,1761137462579,-500.0,0.00045205,90]
[392078133,1761137462589,-506.07,0.00045205,120]
[392078134,1761137462598,-500.0,0.00045205,120]
[392078135,1761137462607,-500.0,0.00045205,120]
[392078136,1761137462618,-500.0,0.00045205,120]
[392078137,1761137462627,-500.0,0.00045205,120]
[392078138,1761137462636,-787.36,0.00045205,120]
[392078139,1761137462646,-654.91,0.00045205,120]
[392078140,1761137462656,-609.54,0.00045205,120]
[392078141,1761137462665,-1546.84,0.00045205,120]
[392078142,1761137462674,-512.22,0.00045205,120]
[392078143,1761137462684,-164.44324126,0.00045205,120]
[392078144,1761137462694,-500.0,0.00045205,120]
[392078145,1761137462703,-500.0,0.00045205,120]
[392078146,1761137462713,-500.0,0.00045205,120]
[392078147,1761137462722,-584.83,0.00045205,120]
[392078148,1761137462731,-300.0,0.00045205,120]
[392078149,1761137462743,-500.0,0.00045205,120]
[392078150,1761137462752,-500.0,0.00045205,12]
[392078151,1761137462762,-500.0,0.00045205,120]
[392078152,1761137462772,-500.0,0.00045205,120]
[392078153,1761137462787,-500.0,0.00045205,120]
[392078154,1761137462797,-500.0,0.00045205,120]
[392078155,1761137462807,-537.03,0.00045205,120]
[392078156,1761137462816,-500.0,0.00045205,120]
[392078157,1761137462826,-1006.19,0.00045205,120]
[392078158,1761137462835,-383.7131179,0.00045205,120]
[392078159,1761137462846,-593.21376606,0.00045205,120]
[392078160,1761137462855,-500.0,0.00045205,120]
[392078161,1761137462864,-768.78,0.00045205,120]
[392078162,1761137462874,-515.05,0.00045205,120]
[392078163,1761137462883,-888.55,0.00045205,120]
[392078164,1761137462893,-1783.82,0.00045205,120]
[392078165,1761137462903,-1004.91,0.00045205,120]
[392078166,1761137462912,-902.56,0.00045205,120]
[392078167,1761137462921,-500.0,0.00045205,120]
[392078168,1761137462930,-500.0,0.00045205,120]
[392078169,1761137462940,-797.64,0.00045205,120]
[392078170,1761137462949,-727.22,0.00045205,120]
[392078171,1761137462958,-500.0,0.00045205,120]
[392078172,1761137462966,-500.0,0.00045205,120]
[392078173,1761137462975,-596.43,0.00045205,30]
[392078174,1761137462985,-839.78,0.00045205,120]
[392078175,1761137462995,-1567.44,0.00045205,120]
[392078176,1761137463004,-978.8,0.00045205,120]
[392078177,1761137463014,-550.93,0.00045205,120]
[392078178,1761137463023,-500.0,0.00045205,120]
[392078179,1761137463033,-594.75929829,0.00045205,120]
[392078180,1761137463043,-1200.44,0.00045205,120]
[392078181,1761137463052,-804.93,0.00045205,120]
[392078182,1761137463061,-739.04,0.00045205,120]
[392078183,1761137463071,-500.0,0.00045205,120]
[392078184,1761137463080,-500.0,0.00045205,120]
[392078185,1761137463089,-771.06,0.00045205,120]
[392078186,1761137463098,-794.03,0.00045205,120]
[392078187,1761137463107,-1137.8,0.00045205,120]
[392078188,1761137463117,-500.0,0.00045205,120]
[392078189,1761137463127,-500.0,0.00045205,120]
[392078190,1761137463136,-935.82,0.00045205,120]
[392078191,1761137463146,-500.0,0.00045205,120]
[392078192,1761137463155,-835.83,0.00045205,120]
[392078193,1761137463165,-1199.67,0.00045205,120]
[392078194,1761137463175,-696.26,0.00045205,120]
[392078195,1761137463184,-652.36,0.00045205,120]
[392078196,1761137463194,-500.0,0.00045205,120]
[392078197,1761137463204,-1077.51,0.00045205,120]
[392078198,1761137463214,-1098.31,0.00045205,120]
[392078199,1761137463223,-866.75,0.00045205,120]
[392078200,1761137463232,-500.0,0.00045205,120]
[392078201,1761137463241,-500.0,0.00045205,120]
[392078202,1761137463251,-500.0,0.00045205,120]
[392078203,1761137463260,-899.21,0.00045205,120]
[392078204,1761137463269,-683.69,0.00045205,120]
[392078205,1761137463279,-901.18,0.00045205,120]
[392078206,1761137463288,-500.0,0.00045205,120]
[392078207,1761137463298,-1139.36,0.00045205,120]
[392078208,1761137463308,-504.64868061,0.00045205,120]
[392078209,1761137463318,-978.62,0.00045205,120]
[392078210,1761137463328,-500.0,0.00045205,120]
[392078211,1761137463338,-500.0,0.00045205,120]
[392078212,1761137463348,-503.85,0.00045205,120]
[392078213,1761137463358,-1709.15,0.00045205,120]
[392078214,1761137463367,-500.0,0.00045205,120]
[392078215,1761137463376,-500.0,0.00045205,120]
[392078216,1761137463386,-500.0,0.00045205,120]
[392078217,1761137463396,-1255.83,0.00045205,120]
[392078218,1761137463405,-598.97,0.00045205,120]
[392078219,1761137463416,-500.0,0.00045205,120]
[392078220,1761137463425,-500.0,0.00045205,120]
[392078221,1761137463435,-509.7358663,0.00045205,120]
[392078222,1761137463446,-500.0,0.00045205,120]
[392078223,1761137463456,-500.0,0.00045205,120]
[392078224,1761137463467,-500.0,0.00045205,120]
[392078225,1761137463478,-913.64,0.00045205,2]
[392078226,1761137463488,-500.0,0.00045205,120]
[392078227,1761137463499,-788.16,0.00045205,120]
[392078228,1761137463509,-500.0,0.00045205,120]
[392078229,1761137463519,-572.17,0.00045205,120]
[392078230,1761137463530,-413.52692153,0.00045205,120]
[392078231,1761137463540,-500.0,0.00045205,120]
[392078232,1761137463550,-365.92897423,0.00045205,120]
[392078233,1761137463559,-237.8,0.00045205,120]
[392078234,1761137463569,-500.0,0.00045205,120]
[392078235,1761137463579,-1172.27,0.00045205,120]
[392078236,1761137463589,-500.0,0.00045205,120]
[392078237,1761137463600,-500.0,0.00045205,120]
[392078238,1761137463610,-822.33,0.00045205,120]
[392078239,1761137463620,-940.37,0.00045205,120]
[392078240,1761137463630,-300.0,0.00045205,2]
[392078241,1761137463640,-500.0,0.00045205,120]
[392078242,1761137463651,-500.0,0.00045205,120]
[392078243,1761137463661,-1208.24,0.00045205,120]
[392078244,1761137463671,-647.81,0.00045205,120]
[392078245,1761137463682,-500.0,0.00045205,120]
[392078246,1761137463692,-485.89964563,0.00045205,120]
[392078247,1761137463701,-500.0,0.00045205,120]
[392078248,1761137463711,-903.67,0.00045205,120]
[392078249,1761137463721,-500.0,0.00045205,120]
[392078250,1761137463732,-701.38,0.00045205,120]
[392078251,1761137463741,-500.0,0.00045205,120]
[392078252,1761137463750,-500.0,0.00045205,120]
[392078253,1761137463760,-726.04,0.00045205,120]
[392078254,1761137463771,-1257.65,0.00045205,120]
[392078255,1761137463784,-1171.07,0.00045205,120]
[392078256,1761137463794,-500.0,0.00045205,120]
[392078257,1761137463804,-246.68308108,0.00045205,120]
[392078258,1761137463815,-500.0,0.00045205,7]
[392078259,1761137463825,-966.41,0.00045205,120]
[392078260,1761137463834,-500.0,0.00045205,120]
[392078261,1761137463845,-500.0,0.00045205,120]
[392078262,1761137463856,-838.16,0.00045205,120]
[392078263,1761137463866,-793.36,0.00045205,120]
[392078264,1761137463876,-650.24,0.00045205,120]
[392078265,1761137463886,-337.61165484,0.00045205,120]
[392078266,1761137463896,-379.7922043,0.00045205,120]
[392078267,1761137463906,-739.64,0.00045205,120]
[392078268,1761137463916,-1537.31,0.00045205,120]
[392078269,1761137463925,-500.0,0.00045205,120]
[392078270,1761137463936,-500.0,0.00045205,120]
[392078271,1761137463945,-1957.66,0.00045205,120]
[392078272,1761137464075,-500.0,0.00045205,120]
[392078273,1761137464087,-500.0,0.00045205,120]
[392078274,1761137464097,-500.0,0.00045205,16]
[392078275,1761137464107,-728.44,0.00045205,120]
[392078276,1761137464116,-500.0,0.00045205,120]
[392078277,1761137464126,-1020.65,0.00045205,120]
[392078278,1761137464136,-500.0,0.00045205,120]
[392078279,1761137464146,-500.0,0.00045205,120]
[392078280,1761137464156,-500.0,0.00045205,120]
[392078281,1761137464166,-500.0,0.00045205,120]
[392078282,1761137464176,-500.0,0.00045205,120]
[392078283,1761137464187,-500.0,0.00045205,120]
[392078284,1761137464197,-158.75844758,0.00045205,120]
[392078285,1761137464207,-500.0,0.00045205,120]
[392078286,1761137464217,-500.0,0.00045205,120]
[392078287,1761137464226,-1283.72,0.00045205,120]
[392078288,1761137464236,-507.24,0.00045205,120]
[392078289,1761137464245,-500.0,0.00045205,120]
[392078290,1761137464255,-500.0,0.00045205,120]
[392078291,1761137464264,-1791.81,0.00045205,120]
[392078292,1761137464274,-600.0,0.00045205,2]
[392078293,1761137464284,-516.69,0.00045205,120]
[392078294,1761137464294,-500.0,0.00045205,120]
[392078295,1761137464304,-1704.96,0.00045205,120]
[392078296,1761137464314,-774.46,0.00045205,120]
[392078297,1761137464324,-684.88,0.00045205,120]
[392078298,1761137464334,-903.57,0.00045205,120]
[392078299,1761137464344,-500.0,0.00045205,120]
[392078300,1761137464354,-500.0,0.00045205,120]
[392078301,1761137464363,-500.0,0.00045205,120]
[392078302,1761137464372,-500.0,0.00045205,120]
[392078303,1761137464382,-500.0,0.00045205,120]
[392078304,1761137464392,-500.08,0.00045205,120]
[392078305,1761137464402,-500.0,0.00045205,120]
[392078306,1761137464411,-976.02,0.00045205,120]
[392078307,1761137464420,-1123.28,0.00045205,120]
[392078308,1761137464430,-791.42,0.00045205,120]
[392078309,1761137464439,-500.0,0.00045205,120]
[392078310,1761137464449,-1380.66,0.00045205,120]
[392078311,1761137464459,-500.0,0.00045205,120]
[392078312,1761137464468,-777.97,0.00045205,120]
[392078313,1761137464478,-1069.18,0.00045205,120]
[392078314,1761137464488,-550.13,0.00045205,120]
[392078315,1761137464498,-500.0,0.00045205,120]
[392078316,1761137464508,-500.0,0.00045205,120]
[392078317,1761137464518,-500.0,0.00045205,120]
[392078318,1761137464527,-500.0,0.00045205,120]
[392078319,1761137464537,-320.03933761,0.00045205,120]
[392078320,1761137464547,-500.0,0.00045205,120]
[392078321,1761137464557,-657.62,0.00045205,120]
[392078322,1761137464567,-500.0,0.00045205,120]
[392078323,1761137464576,-741.11,0.00045205,120]
[392078324,1761137464586,-546.69,0.00045205,120]
[392078325,1761137464596,-405.26391481,0.00045205,120]
[392078326,1761137464606,-868.99,0.00045205,120]
[392078327,1761137464615,-500.0,0.00045205,120]
[392078328,1761137464626,-749.46,0.00045205,120]
[392078329,1761137464635,-500.0,0.00045205,120]
[392078330,1761137464645,-1632.62,0.00045205,120]
[392078331,1761137464655,-1268.92,0.00045205,120]
[392078332,1761137464664,-1515.76,0.00045205,120]
[392078333,1761137464675,-401.73580548,0.00045205,120]
[392078334,1761137464684,-500.0,0.00045205,120]
[392078335,1761137464694,-500.0,0.00045205,120]
[392078336,1761137464705,-1021.54,0.00045205,120]
[392078337,1761137464716,-500.0,0.00045205,120]
[392078338,1761137464726,-500.0,0.00045205,120]
[392078339,1761137464736,-688.01253649,0.0004521,15]
[392078340,1761137464745,-1000.0,0.00045239,2]
[392078341,1761137464754,-374.68584808,0.00045379,15]
[392078342,1761137464764,-2248.9,0.000454,14]
[392078343,1761137464774,-300.0,0.000454,14]
[392078344,1761137464787,-300.0,0.000454,14]
[392078345,1761137464797,-255.86,0.000454,14]
[392078346,1761137464807,-8493.17821269,0.00045468,2]
[392078347,1761137464817,-1999.0,0.00045468,120]
[392078348,1761137464828,-350.0,0.00045468,10]
[392078349,1761137464838,-683.25,0.00045479,120]
[392078350,1761137464847,-668.65,0.00045479,60]
[392078351,1761137464859,-500.0,0.00045479,120]
[392078352,1761137464868,-500.0,0.00045479,120]
[392078353,1761137464878,-500.0,0.00045479,120]
[392078354,1761137464888,-500.0,0.00045479,120]
[392078355,1761137464898,-504.28,0.00045479,120]
[392078356,1761137464907,-500.0,0.00045479,120]
[392078357,1761137464917,-500.0,0.00045479,120]
[392078358,1761137464927,-500.0,0.00045479,120]
[392078359,1761137464936,-500.0,0.00045479,120]
[392078360,1761137464946,-215.42352291,0.00045479,120]
[392078361,1761137464959,-500.0,0.00045479,30]
[392078362,1761137464968,-500.0,0.00045479,120]
[392078363,1761137464978,-678.16,0.00045479,120]
[392078364,1761137464987,-953.82,0.00045479,120]
[392078365,1761137464997,-1131.8,0.00045479,120]
[392078366,1761137465006,-538.28,0.00045479,120]
[392078367,1761137465016,-500.0,0.00045479,120]
[392078368,1761137465025,-1212.18,0.00045479,120]
[392078369,1761137465035,-500.0,0.00045479,120]
[392078370,1761137465044,-500.0,0.00045479,120]
[392078371,1761137465054,-271.60325453,0.00045479,120]
[392078372,1761137465063,-443.92662149,0.00045479,120]
[392078373,1761137465072,-971.57,0.00045479,120]
[392078374,1761137465081,-500.0,0.00045479,120]
[392078375,1761137465091,-503.19024511,0.00045479,120]
[392078376,1761137465100,-500.0,0.00045479,120]
[392078377,1761137465109,-500.0,0.00045479,2]
[392078378,1761137465118,-500.0,0.00045479,2]
[392078379,1761137465127,-500.0,0.00045479,120]
[392078380,1761137465137,-500.0,0.00045479,90]
[392078381,1761137465146,-506.07,0.00045479,120]
[392078382,1761137465156,-500.0,0.00045479,120]
[392078383,1761137465165,-500.0,0.00045479,120]
[392078384,1761137465174,-500.0,0.00045479,120]
[392078385,1761137465183,-500.0,0.00045479,120]
[392078386,1761137465192,-787.36,0.00045479,120]
[392078387,1761137465203,-654.91,0.00045479,120]
[392078388,1761137465213,-609.54,0.00045479,120]
[392078389,1761137465223,-1546.84,0.00045479,120]
[392078390,1761137465232,-512.22,0.00045479,120]
[392078391,1761137465241,-500.0,0.00045479,120]
[392078392,1761137465250,-504.29761914,0.00045479,120]
[392078393,1761137465261,-500.0,0.00045479,120]
[392078394,1761137465271,-584.83,0.00045479,120]
[392078395,1761137465280,-300.0,0.00045479,120]
[392078396,1761137465290,-500.0,0.00045479,120]
[392078397,1761137465300,-500.0,0.00045479,12]
[392078398,1761137465309,-500.0,0.00045479,120]
[392078399,1761137465319,-500.0,0.00045479,120]
[392078400,1761137465328,-500.0,0.00045479,120]
[392078401,1761137465338,-500.0,0.00045479,120]
[392078402,1761137465347,-537.03,0.00045479,120]
[392078403,1761137465358,-500.0,0.00045479,120]
[392078404,1761137465368,-1006.19,0.00045479,120]
[392078405,1761137465378,-500.0,0.00045479,120]
[392078406,1761137465388,-768.78,0.00045479,120]
[392078407,1761137465398,-515.05,0.00045479,120]
[392078408,1761137465407,-888.55,0.00045479,120]
[392078409,1761137465416,-1783.82,0.00045479,120]
[392078410,1761137465426,-1004.91,0.00045479,120]
[392078411,1761137465438,-902.56,0.00045479,120]
[392078412,1761137465448,-500.0,0.00045479,120]
[392078413,1761137465459,-500.0,0.00045479,120]
[392078414,1761137465469,-797.64,0.00045479,120]
[392078415,1761137465478,-727.22,0.00045479,120]
[392078416,1761137465487,-500.0,0.00045479,120]
[392078417,1761137465497,-500.0,0.00045479,120]
[392078418,1761137465509,-596.43,0.00045479,30]
[392078419,1761137465519,-839.78,0.00045479,120]
[392078420,1761137465529,-1567.44,0.00045479,120]